[Event "FIDE Candidates Tournament 2022"]
[Site "Madrid"]
[Date "2022.06.18"]
[Round "2.1"]
[White "Rapport, Richard"]
[Black "Firouzja, Alireza"]
[Result "1/2-1/2"]
[ECO "B53"]
[WhiteElo "2776"]
[BlackElo "2804"]
[Annotator "TA"]
[PlyCount "120"]
[EventDate "2022.06.17"]
[EventType "tourn"]
[EventCountry "ESP"]
[SourceTitle "playchess.com"]
[Source "ChessBase"]
[SourceQuality "1"]
[TimeControl "40/7200:20/3600:900+30"]

{[%evp 9,120,9,26,15,12,14,13,9,13,7,16,18,24,16,16,6,14,2,12,14,24,0,1,0,0,0,0,0,25,26,31,30,33,28,28,39,35,29,32,34,46,36,35,35,42,10,21,7,28,41,44,46,92,93,95,95,262,237,280,293,273,250,439,391,411,381,301,117,116,90,108,122,135,177,167,183,185,15,15,0,141,0,15,24,26,26,29,0,8,0,0,0,8,8,73,0,0,0,0,0,0,0,0,0,0,0,0,0,0,0,0,0,0]} 1. e4 {[%emt 0:00:51]} c5 {[%emt 0:00:17]} 2. Nf3 {[%emt 0:00:48]} d6 {[%emt 0:00:11]} 3. d4 {[%emt 0:00:13]} cxd4 {[%emt 0:00:09]} 4. Qxd4 {[%emt 0:00:13]} Nc6 {[%emt 0:02:58]} 5. Bb5 {[%emt 0:00:29]} a6 {[%emt 0:02:03]} 6. Bxc6+ {[%emt 0:00:54] B53: Sicilian: 2...d6: Lines with Qxd4.} bxc6 {[%emt 0:00:05]} 7. c4 {[%emt 0:00:36]} e5 {[%emt 0:04:52]} 8. Qd3 {[%emt 0:00:34]} Ne7 {[%emt 0:04:56] is cutting edge theory.} 9. c5 {[%emt 0:07:30]} Ng6 {[%emt 0:02:18]} 10. cxd6 {[%emt 0:06:21]} Qxd6 {[%emt 0:02:10]} 11. Qxd6 {[%emt 0:01:46]} Bxd6 {[%emt 0:00:05] [#]} 12. Be3 $146 {[%emt 0:06:34]} ({Predecessor:} 12. O-O f6 13. Be3 Kf7 14. Nbd2 Rb8 15. Rac1 Be7 16. b3 Bd7 17. Nc4 Rhd8 18. Bb6 {½-½ (35) Radeva,V (2372)-Osmak,I (2418) Iasi 2021}) 12... a5 {[%emt 0:10:55]} 13. O-O {[%emt 0:07:53][%cal Be1g1,Bg1f1,Bf1e2][%mdl 32]} f6 {[%emt 0:07:25]} 14. Rc1 {[%emt 0:03:42]} Ra6 {[%emt 0:15:26]} 15. Nbd2 {[%emt 0:07:49]} Be6 {[%emt 0:04:26]} 16. Ne1 {[%emt 0:08:31]} Kf7 {[%emt 0:01:38]} 17. Nd3 {[%emt 0:00:23]} Rd8 {[%emt 0:03:46]} 18. Kf1 {[%emt 0:06:52]} Bb4 {[%emt 0:10:31]} 19. Ke2 {[%emt 0:10:02]} Nh4 {[%emt 0:03:00]} 20. Nxb4 {[%emt 0:01:05]} axb4 {[%emt 0:00:07]} 21. g3 {[%emt 0:00:15]} Ng6 {[%emt 0:00:57]} 22. Bc5 {[%emt 0:05:34]} Rb8 {[%emt 0:01:47]} 23. a3 {[%emt 0:04:35]} bxa3 {[%emt 0:01:16]} 24. Rxa3 {[%emt 0:00:07]} Rba8 {[%emt 0:03:08]} 25. Nc4 {[%emt 0:02:47]} Bxc4+ {[%emt 0:02:35]} 26. Rxc4 {[%emt 0:00:15]} Nf8 {[%emt 0:00:35]} 27. Rb3 {[%emt 0:07:37]} Ne6 {[%emt 0:02:58]} 28. Rb7+ {[%emt 0:00:17]} Kg8 {[%emt 0:00:08]} 29. Be3 {[%emt 0:00:11]} Rd8 {[%emt 0:15:44]} 30. f4 {[%emt 0:02:13]} Nd4+ {[%emt 0:02:43]} (30... g6 $14) 31. Bxd4 $16 {[%emt 0:03:00]} exd4 {[%emt 0:00:56][%mdl 4096] Endgame KRR-KRR} 32. Kd2 $1 {[%emt 0:00:53]} (32. Kd3 Ra1 $11) 32... Ra1 $2 {[%emt 0:04:21]} (32... h6 $16) 33. Rxc6 $18 {[%emt 0:00:51]} Rh1 {[%emt 0:00:04] [#]} 34. Rcc7 $1 {[%emt 0:00:54]} Rxh2+ {[%emt 0:00:04]} 35. Kd3 {[%emt 0:00:05]} g6 $2 {[%emt 0:01:52]} (35... g5 36. fxg5 fxg5) 36. e5 {[%emt 0:00:43]} fxe5 {[%emt 0:00:18]} 37. fxe5 {[%emt 0:00:04]} Rh3 {[%emt 0:00:29]} 38. Ke4 $2 {[%emt 0:00:40]} (38. Rg7+ $18 {is more deadly.} Kh8 39. Rbd7) 38... Rxg3 $16 {[%emt 0:01:08]} 39. Rg7+ {[%emt 0:00:14]} (39. Rxh7 $6 Re3+ 40. Kf4 Rf8+ 41. Kg5 Rxe5+ 42. Kxg6 Re6+ 43. Kg5 Re5+ 44. Kh4 Re4+ 45. Kg5 Re5+ 46. Kh4 Re4+ 47. Kg5 Re5+ $11) 39... Kh8 {[%emt 0:00:23]} 40. Rxh7+ {[%emt 0:00:00]} Kg8 {[%emt 0:00:00]} 41. Kf4 {[%emt 0:25:40]} Re3 {[%emt 0:01:23]} 42. Rbg7+ {[%emt 0:16:38]} Kf8 {[%emt 0:00:16]} 43. Rf7+ $2 {[%emt 0:00:02]} (43. Rxg6 Re8 $16) ({White should play} 43. Ra7 $18 {[%cal Rh7h8]} Kg8 44. Rhg7+ Kf8 45. Rxg6) 43... Kg8 $11 {[%emt 0:01:56]} 44. Rfg7+ {[%emt 0:01:54]} (44. Rhg7+ $11 Kh8 45. Rh7+ (45. Rxg6 Re2 $16) 45... Kg8 46. Rfg7+ Kf8 47. Ra7 (47. Rxg6 Re8 $16)) 44... Kf8 $16 {[%emt 0:00:13]} 45. Rf7+ {[%emt 0:03:42]} ({White should try} 45. Ra7 $16 {[%cal Rh7h8]} Kg8 46. Rag7+) 45... Kg8 $11 {[%emt 0:00:57]} 46. Rhg7+ {[%emt 0:00:02]} Kh8 {[%emt 0:00:56]} 47. Rxg6 {[%emt 0:00:03] Rf5 is the strong threat.} Re2 $1 {[%emt 0:24:52] White must now prevent ...Rf2+.} 48. e6 {[%emt 0:02:39] And now e7 would win.} (48. Rf5 $5 {[%cal Rf5h5]} Rf2+ 49. Kg5 (49. Ke4 Rxf5 50. Kxf5 d3 $14) 49... Rxf5+ 50. Kxf5 $14) 48... Re8 {[%emt 0:04:23] Inhibits e7.} 49. Rh6+ {[%emt 0:00:06]} Kg8 {[%emt 0:00:06]} 50. Rg6+ {[%emt 0:00:02]} Kh8 {[%emt 0:00:05]} 51. Rff6 {[%emt 0:04:22] White wants to mate with Rh6+.} Re7 {[%emt 0:10:45] [#]} (51... Rg8 $11) 52. b4 {[%emt 0:02:43]} (52. Kf5 $1 $16 d3 53. Rg4 (53. Rf8+ Kh7 $11)) 52... d3 $1 {[%emt 0:01:32][%cal Bd4d3,Bd3d2][%mdl 32] The position is equal.} 53. Rg3 {[%emt 0:05:33]} d2 {[%emt 0:01:09]} 54. Rh6+ {[%emt 0:00:45]} Rh7 {[%emt 0:00:04]} 55. Rxh7+ {[%emt 0:00:14]} Kxh7 {[%emt 0:00:03] KR-KR} 56. Rd3 {[%emt 0:00:04] aiming for Kf5.} Kg6 {[%emt 0:01:11]} 57. Kf3 {[%emt 0:01:45]} Rxe6 {[%emt 0:01:44]} 58. Rxd2 {[%emt 0:00:05]} Kf6 {[%emt 0:00:33]} 59. Kf4 {[%emt 0:01:03]} Re1 {[%emt 0:00:48]} 60. Rd4 {[%emt 0:00:00]} Ke6 {[%emt 0:00:00] Black escapes into a draw.  Weighted Error Value: White=0.21 (precise) /Black=0.14 (very precise)} 1/2-1/2

[Event "FIDE Candidates Tournament 2022"]
[Site "Madrid"]
[Date "2022.06.18"]
[Round "2.2"]
[White "Nakamura, Hikaru"]
[Black "Radjabov, Teimour"]
[Result "1-0"]
[ECO "C65"]
[WhiteElo "2760"]
[BlackElo "2753"]
[Annotator "TA"]
[PlyCount "149"]
[EventDate "2022.06.17"]
[EventType "tourn"]
[EventCountry "ESP"]
[SourceTitle "playchess.com"]
[Source "ChessBase"]
[SourceQuality "1"]
[TimeControl "40/7200:20/3600:900+30"]

{[%evp 9,149,10,12,4,7,14,16,4,25,22,24,20,27,19,33,10,33,35,32,26,49,34,69,29,37,29,31,30,22,18,26,22,87,0,5,6,9,5,4,2,2,3,3,3,3,3,4,4,22,12,14,14,23,8,8,8,24,12,19,16,22,8,103,94,99,97,96,95,97,101,111,101,147,147,147,83,135,107,95,103,106,108,129,99,117,117,110,109,114,86,116,111,103,86,116,110,59,29,127,117,132,125,121,125,125,121,236,236,231,226,191,231,220,119,219,208,220,243,260,256,725,724,723,716,716,708,706,706,681,678,1129,1050,1859,1621,6070,5833,5018,1701,5616,4930,4930,4922]} 1. e4 {[%emt 0:00:03]} e5 {[%emt 0:00:04]} 2. Nf3 {[%emt 0:00:09]} Nc6 {[%emt 0:00:03]} 3. Bb5 {[%emt 0:00:07]} Nf6 {[%emt 0:00:05]} 4. d3 {[%emt 0:00:11]} Bc5 {[%emt 0:00:05]} 5. Nbd2 {[%emt 0:00:08]} Nd4 {[%emt 0:07:08]} 6. Nxd4 {[%emt 0:01:13] C65: Ruy Lopez: Berlin Defence (3...Nf6), unusual lines and 4 0-0 Bc5.} Bxd4 {[%emt 0:00:04]} 7. c3 {[%emt 0:00:10]} Bb6 {[%emt 0:03:30]} 8. d4 {[%emt 0:00:29] The position is equal.} c6 {[%emt 0:20:34]} (8... exd4 {seems wilder.} 9. e5 dxc3 10. bxc3 Qe7) 9. dxe5 {[%emt 0:00:35] Bd3 is the strong threat.} cxb5 {[%emt 0:00:04]} 10. exf6 {[%emt 0:00:05]} Qxf6 {[%emt 0:00:04][%csl Gb6][%cal Rf6f2]} 11. O-O {[%emt 0:00:07][%cal Oe4e5]} O-O {[%emt 0:00:05]} 12. Qh5 {[%emt 0:00:05]} Qc6 {[%emt 0:17:28] [#]} (12... d5 $5) 13. Re1 $146 {[%emt 0:00:38]} ({Predecessor:} 13. Nf3 d6 14. Re1 f6 15. Be3 a6 16. Bxb6 Qxb6 17. Qd5+ Rf7 18. Rad1 Bg4 19. Qxd6 {1-0 (33) Nepomniachtchi,I (2784)-Aronian,L (2781) Chess.com INT 2020}) 13... Re8 {[%emt 0:01:59][%cal Od7d5]} 14. Nf3 {[%emt 0:04:59]} d5 {[%emt 0:15:55]} 15. exd5 {[%emt 0:20:34]} Rxe1+ {[%emt 0:01:38]} 16. Nxe1 {[%emt 0:00:06]} Qc4 {[%emt 0:00:19]} 17. h3 {[%emt 0:04:15] Prevents Bg4.} Bd7 {[%emt 0:12:15]} 18. Qf3 {[%emt 0:31:44]} Re8 {[%emt 0:03:12]} 19. Be3 {[%emt 0:19:00]} Bxe3 $1 {[%emt 0:07:01]} 20. fxe3 {[%emt 0:02:01]} Re5 {[%emt 0:02:30]} (20... h6 $11) 21. d6 {[%emt 0:05:51]} (21. Rd1 $16) 21... Qd5 {[%emt 0:06:25]} 22. Rd1 {[%emt 0:02:04][%cal Ba1d1,Bd1d5,Bd5c5,Bc5c7,Bc7b7][%mdl 32]} Qxf3 {[%emt 0:00:05]} 23. Nxf3 {[%emt 0:00:03]} Rxe3 $11 {[%emt 0:00:06][%mdl 4096] Endgame KRB-KRN} 24. Rd5 {[%emt 0:00:08]} f6 {[%emt 0:03:18] Inhibits Ne5.} 25. Rc5 {[%emt 0:00:55]} Re6 $1 {[%emt 0:01:22]} 26. Rc7 {[%emt 0:00:31][%csl LRb7,LRd7]} Rxd6 {[%emt 0:00:05]} 27. Rxb7 {[%emt 0:00:15]} a6 {[%emt 0:01:52]} 28. Nd4 {[%emt 0:01:12]} h5 {[%emt 0:01:51]} 29. h4 {[%emt 0:00:47]} g5 {[%emt 0:01:14]} 30. g3 {[%emt 0:00:12]} Kf7 {[%emt 0:00:40]} 31. Kf2 {[%emt 0:00:29]} Kg6 {[%emt 0:00:08]} 32. Ke3 {[%emt 0:01:42]} Rd5 {[%emt 0:03:05]} 33. Ra7 {[%emt 0:02:38]} Rd6 {[%emt 0:02:29]} 34. b3 {[%emt 0:03:58]} Be6 {[%emt 0:00:05]} 35. Rc7 {[%emt 0:00:41]} Rd5 {[%emt 0:02:03]} 36. Rc6 $1 $16 {[%emt 0:01:49]} (36. Nxe6 $6 Re5+ 37. Kd3 Rxe6 $11) 36... Re5+ {[%emt 0:00:02]} 37. Kf2 {[%emt 0:00:12]} Bd7 {[%emt 0:00:13]} 38. Rxa6 {[%emt 0:01:34]} gxh4 {[%emt 0:00:05]} 39. gxh4 {[%emt 0:00:03]} Re4 {[%emt 0:00:34]} 40. Rd6 {[%emt 0:00:00]} Bc8 {[%emt 0:00:00]} (40... Bg4 $142 41. Rd5 (41. Nxb5 Re2+ 42. Kg3 Rxa2 $16) 41... Bc8) 41. Rd8 {[%emt 0:01:39]} (41. Nxb5 Rxh4 42. a4 Rh2+ 43. Ke3 Rh3+ 44. Kd4 Rh2 $16) 41... Bg4 {[%emt 0:04:21]} 42. Rd5 {[%emt 0:14:25]} (42. b4 $142) 42... Bc8 {[%emt 0:02:00]} (42... f5 $142) 43. Rc5 {[%emt 0:03:05]} Bd7 {[%emt 0:00:08] [#]} 44. Rc7 $1 {[%emt 0:00:45]} Be8 {[%emt 0:00:26] [#]} 45. Nf3 $1 {[%emt 0:01:43]} Re6 {[%emt 0:06:28]} 46. Ra7 {[%emt 0:02:53] Against Ra6} Re4 {[%emt 0:00:28]} 47. Ra8 {[%emt 0:00:52]} Kf7 {[%emt 0:00:55]} 48. Rd8 {[%emt 0:00:26]} Re7 {[%emt 0:10:48]} 49. Rd2 {[%emt 0:01:31]} Re4 {[%emt 0:11:43]} 50. Rd5 {[%emt 0:03:27]} Kg6 {[%emt 0:05:54]} 51. a3 {[%emt 0:04:54]} Re7 {[%emt 0:04:49]} 52. Nd4 {[%emt 0:01:19]} Re4 {[%emt 0:00:04]} 53. Nxb5 {[%emt 0:01:08]} Rxh4 {[%emt 0:00:07] White now steadily converts the win.} (53... Rf4+ $1 $11 54. Kg1 Rg4+ 55. Kf1 Rxh4) 54. Nd4 {[%emt 0:00:28]} Rh2+ {[%emt 0:02:04]} 55. Kg3 {[%emt 0:00:43]} Rd2 {[%emt 0:01:06]} 56. c4 {[%emt 0:00:59]} Rd3+ {[%emt 0:02:00]} 57. Kh4 {[%emt 0:06:28] White is more active.} Bf7 {[%emt 0:01:30]} (57... Rc3 $16 58. a4 (58. Rxh5 Bd7) 58... Bf7) 58. Rd8 $18 {[%emt 0:00:20]} Rd1 {[%emt 0:01:05]} 59. a4 {[%emt 0:01:57]} Rh1+ {[%emt 0:00:36]} 60. Kg3 {[%emt 0:00:00] Black must now prevent c5.} h4+ {[%emt 0:00:00]} 61. Kg2 {[%emt 0:05:01]} ({Better is} 61. Kf2 $18) 61... Rc1 {[%emt 0:11:18]} (61... Rb1 $16 {was necessary.}) 62. a5 {[%emt 0:10:17]} Kh5 {[%emt 0:01:32]} 63. Kf2 {[%emt 0:08:20] Hoping for a6.} Kg4 {[%emt 0:03:58]} 64. Rf8 {[%emt 0:00:50]} h3 $2 {[%emt 0:02:16]} (64... Bg6 65. a6 Ra1 66. Rxf6 Be4) 65. Rxf7 {[%emt 0:00:32] aiming for Rg7+. KRN-KR. White is clearly winning.} h2 {[%emt 0:00:02]} 66. Rg7+ {[%emt 0:00:21]} (66. Rh7 h1=Q 67. Rxh1 Rxh1 $18) 66... Kf4 {[%emt 0:00:04]} 67. Ne2+ {[%emt 0:00:07]} Ke5 {[%emt 0:00:04]} 68. Ng3 {[%emt 0:00:06]} ({Not} 68. Nxc1 h1=Q 69. Ne2 Qh4+ 70. Rg3 f5 $11) ({Inferior is} 68. Re7+ Kd6 69. Rh7 (69. Nxc1 h1=Q $15) 69... h1=Q 70. Rxh1 Rxh1 $11) 68... Rc2+ {[%emt 0:00:10]} 69. Kf3 {[%emt 0:00:34]} Rc3+ {[%emt 0:00:22]} 70. Kg2 {[%emt 0:00:03] Threatens to win with Re7+.} Rxb3 {[%emt 0:00:06]} 71. a6 {[%emt 0:00:25][%cal Ba5a6,Ba6a7][%mdl 32]} Ra3 {[%emt 0:00:32]} 72. a7 {[%emt 0:00:04]} Kd4 {[%emt 0:00:02]} 73. Nf5+ {[%emt 0:02:48]} Kxc4 {[%emt 0:00:05]} 74. Rb7 {[%emt 0:00:34]} Kc5 {[%emt 0:03:28]} 75. Ne7 {[%emt 0:00:10] Weighted Error Value: White=0.06 (flawless) /Black=0.16 (very precise)} 1-0

[Event "FIDE Candidates Tournament 2022"]
[Site "Madrid"]
[Date "2022.06.18"]
[Round "2.3"]
[White "Nepomniachtchi, Ian"]
[Black "Caruana, Fabiano"]
[Result "1/2-1/2"]
[ECO "C54"]
[WhiteElo "2773"]
[BlackElo "2786"]
[Annotator "TA"]
[PlyCount "65"]
[EventDate "2022.06.17"]
[EventType "tourn"]
[EventCountry "ESP"]
[SourceTitle "playchess.com"]
[Source "ChessBase"]
[SourceQuality "1"]
[TimeControl "40/7200:20/3600:900+30"]

{[%evp 11,65,2,19,19,25,18,22,24,40,35,52,41,52,39,43,40,43,27,29,17,25,-8,-5,-17,-6,-33,-26,-43,-23,-62,-56,-52,-38,-31,-57,-41,-51,-61,-46,-52,-40,-96,-90,-104,-114,-106,-96,-111,-96,-131,0,0,0,-105,0,0]} 1. e4 {[%emt 0:00:07]} e5 {[%emt 0:00:06]} 2. Nf3 {[%emt 0:00:05]} Nc6 {[%emt 0:00:03]} 3. Bc4 {[%emt 0:00:05]} Nf6 {[%emt 0:00:05]} 4. d3 {[%emt 0:00:05]} Bc5 {[%emt 0:00:12]} 5. O-O {[%emt 0:00:22]} d6 {[%emt 0:00:06]} 6. c3 {[%emt 0:00:18]} a6 {[%emt 0:00:10]} 7. a4 $1 {[%emt 0:00:17][%mdl 4] is now more promising than 7.Bb3. C54: Giuoco Piano: 4 c3 Nf6, main lines with 5 d4 and 5 d3.} Ba7 {[%emt 0:00:17]} 8. Re1 {[%emt 0:00:45]} h6 {[%emt 0:00:25]} 9. Nbd2 {[%emt 0:00:18][%cal Bb1d2,Bd2f1,Bf1g3][%mdl 32]} g5 {[%emt 0:00:30]} 10. b4 {[%emt 0:03:29] [#]} Ng4 $1 $146 {[%emt 0:00:25][%mdl 8] A relevant novelty.} ({Predecessor:} 10... Ne7 11. Nf1 Ng6 12. Be3 Bxe3 13. Nxe3 g4 14. Nd2 h5 15. d4 h4 16. Qb3 Rh7 {1-0 (48) Nepomniachtchi,I (2773)-Grischuk,A (2742) Chess.com INT 2022}) 11. Re2 {[%emt 0:06:49]} Qf6 {[%emt 0:00:07]} 12. Qe1 {[%emt 0:05:20]} Qg7 {[%emt 0:00:27]} 13. Nf1 {[%emt 0:02:17]} O-O {[%emt 0:00:16]} 14. Ng3 {[%emt 0:06:38]} Ne7 {[%emt 0:00:28]} 15. d4 {[%emt 0:11:22]} exd4 {[%emt 0:01:27]} 16. cxd4 {[%emt 0:01:50] Black must now prevent Bb2.} (16. Bb2 $5 {[%cal Rc3d4]}) 16... Nc6 {[%emt 0:00:38]} 17. Ra3 {[%emt 0:19:43][%cal Ba1a3,Ba3b3,Bb3g3][%mdl 32]} Nxd4 {[%emt 0:09:00]} 18. Nxd4 {[%emt 0:00:22]} (18. Rd2 $5 {[%cal Rf3d4]}) 18... Bxd4 {[%emt 0:03:50]} 19. h3 {[%emt 0:00:23]} Ne5 {[%emt 0:05:46]} 20. Ba2 {[%emt 0:00:13]} c5 {[%emt 0:12:08]} 21. bxc5 {[%emt 0:03:32]} Bxc5 {[%emt 0:07:29]} 22. Rb3 {[%emt 0:04:32]} b5 {[%emt 0:07:10]} 23. Nf5 {[%emt 0:01:03]} Qf6 {[%emt 0:05:05]} 24. Kh2 {[%emt 0:08:01]} bxa4 {[%emt 0:10:16]} 25. Rg3 {[%emt 0:00:44] Hoping for f4.} Kh7 {[%emt 0:03:05]} 26. Qd1 {[%emt 0:05:27]} (26. f4 $15 gxf4 27. Bxf4 Bxf5 28. exf5) 26... Bd7 $17 {[%emt 0:10:44]} 27. Rc2 {[%emt 0:01:16][%cal Oc1g5] Strongly threatening Bxg5!} Bxf5 {[%emt 0:13:28]} 28. exf5 {[%emt 0:00:21]} Rab8 {[%emt 0:03:13]} (28... Qxf5 $6 29. Bb1 Kg8 30. Rb2 $11) 29. Qh5 {[%emt 0:09:48][%cal Rc1g5] aiming for Bxg5.} Rg8 {[%emt 0:00:33]} (29... Qxf5 $2 30. Rxc5 $1 dxc5 31. Rxg5 $18) 30. Bb2 {[%emt 0:01:18]} Rge8 {[%emt 0:09:47]} ({Of course not} 30... Qxf5 31. Bxe5 Qxe5 32. Bxf7 $11) 31. Bc1 $1 {[%emt 0:01:25][%cal Rc1g5] Bxg5 is the strong threat. This bishop pair is nice.} Rg8 {[%emt 0:00:32]} (31... Qxf5 $2 32. Rxg5 Qf6 33. f4 $16 (33. Rf5 Qg6 $11)) 32. Bb2 $1 {[%emt 0:00:04] [#]} Rge8 {[%emt 0:02:12]} ({Much worse is} 32... Qxf5 33. Bxe5 Qxe5 34. Bxf7 $11) (32... Rxb2 $1 $17 33. Rxb2 d5 34. Bxd5 Qxf5) 33. Bc1 $1 {[%emt 0:02:13] Weighted Error Value: White=0.09 (flawless) /Black=0.15 (very precise)} 1/2-1/2

[Event "FIDE Candidates Tournament 2022"]
[Site "Madrid"]
[Date "2022.06.18"]
[Round "2.4"]
[White "Duda, Jan-Krzysztof"]
[Black "Ding, Liren"]
[Result "1/2-1/2"]
[ECO "C54"]
[WhiteElo "2750"]
[BlackElo "2806"]
[Annotator "TA"]
[PlyCount "82"]
[EventDate "2022.06.17"]
[EventType "tourn"]
[EventCountry "ESP"]
[SourceTitle "playchess.com"]
[Source "ChessBase"]
[SourceQuality "1"]
[TimeControl "40/7200:20/3600:900+30"]

{[%evp 12,82,18,13,18,18,18,18,10,10,6,0,1,0,0,0,0,0,0,-13,8,0,-12,-8,0,0,25,-25,-25,-26,-23,-26,-33,-43,-64,-48,-14,-9,0,0,0,0,-9,-38,0,-7,0,0,0,0,0,0,0,0,8,0,0,0,0,0,0,0,0,0,0,0,6,0,0,0,12,0,0]} 1. e4 {[%emt 0:00:04]} e5 {[%emt 0:00:04]} 2. Nf3 {[%emt 0:00:06]} Nc6 {[%emt 0:00:04]} 3. Bc4 {[%emt 0:00:09]} Nf6 {[%emt 0:00:05]} 4. d3 {[%emt 0:00:06]} Bc5 {[%emt 0:00:03]} 5. c3 {[%emt 0:00:07]} d6 {[%emt 0:00:14]} 6. O-O {[%emt 0:00:07]} O-O {[%emt 0:00:09]} 7. Re1 $1 {[%emt 0:00:07][%mdl 4] is more profitable than 7.Bb3 at the moment.} a5 {[%emt 0:00:20] C54: Giuoco Piano: 4 c3 Nf6, main lines with 5 d4 and 5 d3.} 8. h3 {[%emt 0:00:15]} h6 {[%emt 0:00:17]} 9. Nbd2 {[%emt 0:00:07]} Be6 {[%emt 0:00:27]} 10. Bb5 {[%emt 0:00:08]} Qb8 {[%emt 0:00:38]} 11. Nf1 {[%emt 0:00:18]} Qa7 {[%emt 0:00:13]} 12. Re2 {[%emt 0:00:23]} a4 {[%emt 0:00:28]} 13. Ng3 {[%emt 0:00:19]} Qa5 {[%emt 0:00:17]} 14. Bxc6 {[%emt 0:00:09]} bxc6 {[%emt 0:00:03] [#]} 15. Bd2 $146 {[%emt 0:00:09]} ({Predecessor:} 15. Nh4 Rfe8 16. Nhf5 d5 17. Nxh6+ gxh6 18. Bxh6 dxe4 19. Rxe4 Bxf2+ 20. Kxf2 Qb6+ 21. Kf1 Qxb2 {½-½ (84) Kasimdzhanov,R (2657)-Mamedyarov,S (2767) Khanty-Mansiysk 2019}) 15... Bb6 {[%emt 0:03:33]} (15... Qb5 $5 {[%cal Rb5d3]} 16. c4 Qb6 $11) 16. Qc2 {[%emt 0:06:58]} Kh7 {[%emt 0:04:27]} 17. c4 {[%emt 0:09:12]} Qa7 {[%emt 0:00:51]} 18. Bc3 {[%emt 0:02:54]} Ng8 {[%emt 0:06:55]} 19. Rd2 {[%emt 0:13:21]} ({White should play} 19. b4) 19... c5 $11 {[%emt 0:08:35]} 20. Rf1 {[%emt 0:04:21]} c6 {[%emt 0:00:19]} 21. Nh2 {[%emt 0:06:10]} f6 {[%emt 0:04:48]} 22. Re2 {[%emt 0:02:37]} Qd7 {[%emt 0:03:51]} 23. Bd2 {[%emt 0:01:34]} g5 {[%emt 0:04:48] Prevents f4.} 24. Rb1 {[%emt 0:13:26]} Ne7 {[%emt 0:01:57]} 25. b4 {[%emt 0:01:30]} axb3 {[%emt 0:06:38]} 26. Rxb3 {[%emt 0:00:41]} Bc7 {[%emt 0:00:05]} 27. Be3 {[%emt 0:03:23]} Qe8 {[%emt 0:19:15]} 28. Rb7 {[%emt 0:03:05] The position is equal.} Qd8 {[%emt 0:00:18]} 29. Qd1 {[%emt 0:03:55]} Bc8 {[%emt 0:04:16]} 30. Rb3 {[%emt 0:00:09]} Qe8 {[%emt 0:01:41]} 31. Reb2 {[%emt 0:00:27]} Qg6 {[%emt 0:00:20]} 32. Nhf1 {[%emt 0:03:48][%cal Bh2f1,Bf1g3,Bg3h5][%mdl 32]} Rf7 {[%emt 0:04:54]} 33. Qe2 {[%emt 0:04:56]} Kg8 {[%emt 0:02:34]} 34. Bd2 {[%emt 0:06:18]} f5 {[%emt 0:00:31]} 35. exf5 {[%emt 0:00:27]} Nxf5 {[%emt 0:00:06]} 36. Nxf5 {[%emt 0:00:14]} Bxf5 {[%emt 0:00:29]} 37. Ng3 {[%emt 0:00:19]} Bc8 {[%emt 0:00:19]} 38. Be3 {[%emt 0:04:16]} Kg7 {[%emt 0:04:43]} 39. Nh5+ {[%emt 0:02:38]} Kg8 {[%emt 0:00:19] Threatens to win with ...g4.} 40. Ng3 {[%emt 0:00:00]} Kg7 {[%emt 0:00:00]} 41. Nh5+ {[%emt 0:00:15]} Kg8 {[%emt 0:01:57] Weighted Error Value: White=0.04 (flawless) /Black=0.04 (flawless)} 1/2-1/2